[Event "Condigne Dutch Open 2018"]
[Site "Dieren"]
[Date "2018.07.24"]
[Round "1"]
[White "Ikonnikov, Vyacheslav"]
[Black "Ojas Kulkarni"]
[Result "1-0"]
[ECO "D91"]
[WhiteElo "2536"]
[BlackElo "2226"]
[Annotator "ChessBase"]
[PlyCount "65"]
[EventDate "2018.07.24"]
[EventType "swiss"]
[EventCountry "NED"]
[SourceTitle "playchess.com"]
[Source "ChessBase"]
[SourceQuality "1"]
[TimeControl "40/5400+30:1800+30"]

1. d4 {[%emt 0:00:00]} Nf6 {[%emt 0:00:09]} 2. Nf3 {[%emt 0:00:00]} g6 {[%emt 0:00:11]} 3. c4 {[%emt 0:00:02]} Bg7 {[%emt 0:00:07]} 4. Nc3 {[%emt 0:00:15]} d5 {[%emt 0:00:10]} 5. Bg5 {[%emt 0:00:36]} Ne4 {[%emt 0:00:11]} 6. cxd5 {[%emt 0:00:12]} Nxg5 {[%emt 0:00:06]} 7. Nxg5 {[%emt 0:00:17]} e6 {[%emt 0:00:02]} 8. Qd2 {[%emt 0:02:12]} h6 {[%emt 0:00:07]} 9. Nf3 {[%emt 0:00:04]} exd5 {[%emt 0:00:05]} 10. e3 {[%emt 0:00:23]} a5 {[%emt 0:00:42]} 11. Bd3 {[%emt 0:02:57]} c6 {[%emt 0:02:49]} 12. O-O {[%emt 0:02:38]} O-O {[%emt 0:00:19]} 13. Ne5 {[%emt 0:00:34]} c5 {[%emt 0:18:14]} 14. f4 {[%emt 0:03:17]} Nc6 {[%emt 0:02:08]} 15. Qf2 {[%emt 0:00:39]} Be6 {[%emt 0:22:18]} 16. Rad1 {[%emt 0:04:13]} Rb8 {[%emt 0:04:35]} 17. Bb1 {[%emt 0:03:59]} cxd4 {[%emt 0:04:27]} 18. exd4 {[%emt 0:04:19]} Ne7 {[%emt 0:00:18]} 19. h3 {[%emt 0:02:29]} Bf5 {[%emt 0:19:39]} 20. Bxf5 {[%emt 0:02:00]} Nxf5 {[%emt 0:00:03]} 21. g4 {[%emt 0:00:24]} Nd6 {[%emt 0:00:09]} 22. Qg2 {[%emt 0:00:28]} Nc4 {[%emt 0:00:43]} 23. Nxd5 {[%emt 0:00:36]} Nxb2 {[%emt 0:01:00]} 24. Rd2 {[%emt 0:03:52]} Na4 {[%emt 0:00:29]} 25. f5 {[%emt 0:00:16]} Nb6 {[%emt 0:00:31]} 26. Nxb6 {[%emt 0:14:46]} Bxe5 {[%emt 0:00:05]} 27. Nd5 {[%emt 0:00:04]} Bd6 {[%emt 0:01:07]} 28. fxg6 {[%emt 0:04:56]} fxg6 {[%emt 0:00:02]} 29. Qe4 {[%emt 0:00:10]} Kg7 {[%emt 0:11:20]} 30. Qe6 {[%emt 0:11:54]} Bb4 {[%emt 0:06:16]} 31. Qe5+ {[%emt 0:07:10]} Kg8 {[%emt 0:00:38]} 32. Nf6+ {[%emt 0:05:30]} Rxf6 {[%emt 0:00:11]} 33. Rxf6 {[%emt 0:00:04]} 1-0

[Event "Condigne Dutch Open 2018"]
[Site "Dieren"]
[Date "2018.07.24"]
[Round "1"]
[White "Lai, Hing Ting"]
[Black "Sparenberg, Erik"]
[Result "1-0"]
[ECO "E08"]
[WhiteElo "2447"]
[BlackElo "2173"]
[Annotator "NA"]
[PlyCount "79"]
[EventDate "2018.07.24"]
[EventType "swiss"]
[EventCountry "NED"]
[SourceTitle "playchess.com"]
[Source "ChessBase"]
[SourceQuality "1"]
[TimeControl "40/5400+30:1800+30"]

1. c4 {[%emt 0:02:03]} Nf6 {[%emt 0:00:08]} 2. Nf3 {[%emt 0:01:02]} e6 {[%emt 0:00:19]} 3. d4 {[%emt 0:00:07]} d5 {[%emt 0:00:07]} 4. g3 {[%emt 0:00:05]} Be7 {[%emt 0:02:39]} 5. Bg2 {[%emt 0:00:16]} O-O {[%emt 0:00:08]} 6. O-O {[%emt 0:00:07]} c6 {[%emt 0:00:37]} 7. Qc2 {[%emt 0:00:27]} b6 {[%emt 0:03:46]} 8. b3 {[%emt 0:02:22]} Bb7 {[%emt 0:03:50]} 9. Nc3 {[%emt 0:01:50]} Nbd7 {[%emt 0:02:25]} 10. Rd1 {[%emt 0:03:45]} Rc8 {[%emt 0:17:03]} 11. e4 {[%emt 0:04:48]} Nxe4 {[%emt 0:01:03]} 12. Nxe4 {[%emt 0:00:17]} dxe4 {[%emt 0:00:06]} 13. Qxe4 {[%emt 0:00:22]} Qc7 {[%emt 0:05:51]} 14. Bf4 {[%emt 0:03:54]} Bd6 {[%emt 0:02:01]} 15. Bxd6 {[%emt 0:00:21]} Qxd6 {[%emt 0:00:04]} 16. c5 {[%emt 0:00:20]} Qe7 {[%emt 0:07:54]} 17. b4 {[%emt 0:02:06]} Ba6 {[%emt 0:10:57]} 18. Qc2 {[%emt 0:02:27]} Qf6 {[%emt 0:09:02]} 19. Qc3 {[%emt 0:10:52]} Be2 {[%emt 0:04:31]} 20. Ne5 {[%emt 0:00:15]} Nb8 {[%emt 0:09:33]} 21. Rd2 {[%emt 0:00:50]} Bh5 {[%emt 0:01:48]} 22. a4 {[%emt 0:03:38]} Qe7 {[%emt 0:06:20]} 23. cxb6 {[%emt 0:01:56]} axb6 {[%emt 0:00:02]} 24. a5 {[%emt 0:03:47]} bxa5 {[%emt 0:04:12]} 25. bxa5 {[%emt 0:01:29]} c5 {[%emt 0:01:37]} 26. a6 {[%emt 0:02:36]} cxd4 {[%emt 0:02:04]} 27. Qxd4 {[%emt 0:00:15]} Nxa6 {[%emt 0:03:29]} 28. Rxa6 {[%emt 0:00:15]} Rc1+ {[%emt 0:00:44]} 29. Bf1 {[%emt 0:00:01]} Rxf1+ {[%emt 0:00:16]} 30. Kxf1 {[%emt 0:00:19]} Qb7 {[%emt 0:00:02]} 31. Rc6 {[%emt 0:00:36]} f6 {[%emt 0:01:14]} 32. Qb6 {[%emt 0:04:07]} Qa8 {[%emt 0:01:13]} 33. Nd3 {[%emt 0:03:42]} Rd8 {[%emt 0:01:16]} 34. Ra2 {[%emt 0:01:24]} Qxa2 {[%emt 0:00:38]} 35. Qxd8+ {[%emt 0:00:09]} Kf7 {[%emt 0:00:01]} 36. Qd7+ {[%emt 0:01:08]} Kg6 {[%emt 0:00:06]} 37. Nf4+ {[%emt 0:00:33]} Kh6 {[%emt 0:00:06]} 38. Kg2 {[%emt 0:02:12]} Qb1 {[%emt 0:01:21]} 39. Qxe6 {[%emt 0:01:30]} Qd1 {[%emt 0:00:49]} 40. Qe3 {[%emt 0:00:39]} 1-0

[Event "Condigne Dutch Open 2018"]
[Site "Dieren"]
[Date "2018.07.24"]
[Round "1"]
[White "Viani Antonio Dcunha"]
[Black "Polak, Alexander"]
[Result "1-0"]
[ECO "B19"]
[WhiteElo "2404"]
[BlackElo "2136"]
[Annotator "NA"]
[PlyCount "57"]
[EventDate "2018.07.24"]
[EventType "swiss"]
[EventCountry "NED"]
[SourceTitle "playchess.com"]
[Source "ChessBase"]
[SourceQuality "1"]
[TimeControl "40/5400+30:1800+30"]

1. e4 {[%emt 0:00:35]} c6 {[%emt 0:00:04]} 2. d4 {[%emt 0:00:18]} d5 {[%emt 0:00:03]} 3. Nd2 {[%emt 0:00:12]} dxe4 {[%emt 0:00:05]} 4. Nxe4 {[%emt 0:00:11]} Bf5 {[%emt 0:00:03]} 5. Ng3 {[%emt 0:00:15]} Bg6 {[%emt 0:00:02]} 6. h4 {[%emt 0:00:24]} h6 {[%emt 0:00:04]} 7. h5 {[%emt 0:00:12]} Bh7 {[%emt 0:00:02]} 8. Nf3 {[%emt 0:00:11]} e6 {[%emt 0:00:58]} 9. Bd3 {[%emt 0:00:35]} Bxd3 {[%emt 0:00:07]} 10. Qxd3 {[%emt 0:00:04]} Nf6 {[%emt 0:01:20]} 11. Bd2 {[%emt 0:00:35]} Be7 {[%emt 0:02:59]} 12. O-O-O {[%emt 0:01:10]} O-O {[%emt 0:00:35]} 13. Kb1 {[%emt 0:04:17]} c5 {[%emt 0:06:36]} 14. Be3 {[%emt 0:00:49]} Ng4 {[%emt 0:15:31]} 15. Ne4 {[%emt 0:06:28]} Qc7 {[%emt 0:04:18]} 16. Nxc5 {[%emt 0:09:59]} Bxc5 {[%emt 0:00:49]} 17. dxc5 {[%emt 0:00:18]} Nxe3 {[%emt 0:02:31]} 18. Qxe3 {[%emt 0:00:17]} Na6 {[%emt 0:03:29]} 19. Ne5 {[%emt 0:06:03]} Nxc5 {[%emt 0:04:13]} 20. b4 {[%emt 0:02:59]} Na4 {[%emt 0:03:33]} 21. Rd7 {[%emt 0:00:23]} Qc8 {[%emt 0:00:55]} 22. Rh4 {[%emt 0:12:17]} Nc3+ {[%emt 0:03:37]} 23. Kc1 {[%emt 0:00:53]} Nd5 {[%emt 0:06:23]} 24. Qf3 {[%emt 0:05:51]} Qe8 {[%emt 0:09:28]} 25. Rg4 {[%emt 0:00:51]} Rc8 {[%emt 0:07:39]} 26. Qg3 {[%emt 0:08:18]} Ne7 {[%emt 0:04:38]} 27. Rxe7 {[%emt 0:01:43]} Qxe7 {[%emt 0:00:12]} 28. Rxg7+ {[%emt 0:00:08]} Kh8 {[%emt 0:00:03]} 29. Ng6+ {[%emt 0:00:15]} 1-0

[Event "Condigne Dutch Open 2018"]
[Site "Dieren"]
[Date "2018.07.24"]
[Round "1"]
[White "Schoppen, Casper"]
[Black "Bruil, Rembrandt"]
[Result "1-0"]
[ECO "B38"]
[WhiteElo "2395"]
[BlackElo "2126"]
[Annotator "NA"]
[PlyCount "79"]
[EventDate "2018.07.24"]
[EventType "swiss"]
[EventCountry "NED"]
[SourceTitle "playchess.com"]
[Source "ChessBase"]
[SourceQuality "1"]
[TimeControl "40/5400+30:1800+30"]

1. e4 {[%emt 0:00:00]} c5 {[%emt 0:00:03]} 2. Nf3 {[%emt 0:00:00]} Nc6 {[%emt 0:00:04]} 3. d4 {[%emt 0:00:00]} cxd4 {[%emt 0:00:06]} 4. Nxd4 {[%emt 0:00:02]} g6 {[%emt 0:00:07]} 5. c4 {[%emt 0:00:27]} Nf6 {[%emt 0:00:06]} 6. Nc3 {[%emt 0:00:04]} d6 {[%emt 0:00:03]} 7. Nc2 {[%emt 0:02:39]} Bg7 {[%emt 0:00:12]} 8. Be2 {[%emt 0:00:14]} O-O {[%emt 0:00:11]} 9. O-O {[%emt 0:00:05]} Bd7 {[%emt 0:01:13]} 10. Be3 {[%emt 0:01:14]} Rc8 {[%emt 0:02:28]} 11. Rc1 {[%emt 0:00:48]} a6 {[%emt 0:02:23]} 12. f3 {[%emt 0:12:18]} Ne5 {[%emt 0:10:16]} 13. Na3 {[%emt 0:02:55]} Be6 {[%emt 0:13:00]} 14. Nd5 {[%emt 0:04:38]} Bxd5 {[%emt 0:06:36]} 15. cxd5 {[%emt 0:07:12]} Rxc1 {[%emt 0:02:13]} 16. Qxc1 {[%emt 0:14:53]} Qb8 {[%emt 0:00:32]} 17. Qd2 {[%emt 0:00:58]} Rc8 {[%emt 0:01:19]} 18. Rc1 {[%emt 0:01:17]} h5 {[%emt 0:06:01]} 19. Rxc8+ {[%emt 0:10:57]} Qxc8 {[%emt 0:00:07]} 20. h3 {[%emt 0:03:14]} Qc7 {[%emt 0:02:24]} 21. b4 {[%emt 0:03:26]} b5 {[%emt 0:11:07]} 22. Qc2 {[%emt 0:04:47]} Qxc2 {[%emt 0:05:04]} 23. Nxc2 {[%emt 0:01:54]} e6 {[%emt 0:14:23]} 24. dxe6 {[%emt 0:10:00]} fxe6 {[%emt 0:00:17]} 25. a4 {[%emt 0:06:09]} bxa4 {[%emt 0:08:04]} 26. Bxa6 {[%emt 0:00:09]} d5 {[%emt 0:03:26]} 27. Bb5 {[%emt 0:01:53]} dxe4 {[%emt 0:01:07]} 28. fxe4 {[%emt 0:00:33]} Nxe4 {[%emt 0:01:46]} 29. Bxa4 {[%emt 0:00:09]} Nc4 {[%emt 0:01:27]} 30. Ba7 {[%emt 0:00:33]} Kf7 {[%emt 0:01:43]} 31. Bc6 {[%emt 0:01:12]} Ned6 {[%emt 0:00:33]} 32. Bf3 {[%emt 0:04:44]} Nc8 {[%emt 0:01:18]} 33. Bf2 {[%emt 0:00:18]} Be5 {[%emt 0:01:27]} 34. Be2 {[%emt 0:01:52]} N4b6 {[%emt 0:01:24]} 35. Ba6 {[%emt 0:00:37]} Bc7 {[%emt 0:00:10]} 36. Nd4 {[%emt 0:02:03]} Nd6 {[%emt 0:01:19]} 37. Nc6 {[%emt 0:01:47]} Ne4 {[%emt 0:01:53]} 38. Bd4 {[%emt 0:00:22]} Nd7 {[%emt 0:00:58]} 39. Bd3 {[%emt 0:01:19]} Nd6 {[%emt 0:01:11]} 40. Bb2 {[%emt 0:02:18]} 1-0

[Event "Condigne Dutch Open 2018"]
[Site "Dieren"]
[Date "2018.07.24"]
[Round "1"]
[White "Zwirs, Nico"]
[Black "Van Helvoort, Rob"]
[Result "1-0"]
[ECO "B06"]
[WhiteElo "2386"]
[BlackElo "2119"]
[Annotator "NA"]
[PlyCount "43"]
[EventDate "2018.07.24"]
[EventType "swiss"]
[EventCountry "NED"]
[SourceTitle "playchess.com"]
[Source "ChessBase"]
[SourceQuality "1"]
[TimeControl "40/5400+30:1800+30"]

1. e4 {[%emt 0:00:00]} g6 {[%emt 0:00:04]} 2. d4 {[%emt 0:00:09]} Bg7 {[%emt 0:00:04]} 3. Nc3 {[%emt 0:03:01]} d6 {[%emt 0:00:23]} 4. f4 {[%emt 0:00:09]} a6 {[%emt 0:00:05]} 5. Nf3 {[%emt 0:00:10]} b5 {[%emt 0:00:11]} 6. Bd3 {[%emt 0:00:05]} Nd7 {[%emt 0:00:37]} 7. e5 {[%emt 0:02:59]} c5 {[%emt 0:00:42]} 8. Be4 {[%emt 0:00:43]} Rb8 {[%emt 0:01:41]} 9. Be3 {[%emt 0:00:29]} b4 {[%emt 0:27:56]} 10. Ne2 {[%emt 0:00:35]} Nh6 {[%emt 0:04:19]} 11. h3 {[%emt 0:12:26]} e6 {[%emt 0:33:51]} 12. exd6 {[%emt 0:06:01]} Nf5 {[%emt 0:03:05]} 13. Bxf5 {[%emt 0:02:19]} exf5 {[%emt 0:00:52]} 14. dxc5 {[%emt 0:00:10]} Bb7 {[%emt 0:00:42]} 15. Bd4 {[%emt 0:04:48]} O-O {[%emt 0:06:03]} 16. Bxg7 {[%emt 0:07:07]} Kxg7 {[%emt 0:00:03]} 17. Qd4+ {[%emt 0:00:13]} Kg8 {[%emt 0:01:50]} 18. Ne5 {[%emt 0:03:56]} Qc8 {[%emt 0:04:22]} 19. Nxd7 {[%emt 0:06:48]} Qxd7 {[%emt 0:00:01]} 20. O-O-O {[%emt 0:00:39]} Rfc8 {[%emt 0:03:33]} 21. Ng3 {[%emt 0:01:41]} Bxg2 {[%emt 0:01:51]} 22. Nh5 {[%emt 0:01:11]} 1-0

[Event "Condigne Dutch Open 2018"]
[Site "Dieren"]
[Date "2018.07.24"]
[Round "1"]
[White "De Boer, Bas"]
[Black "Beukema, Stefan"]
[Result "0-1"]
[ECO "A81"]
[WhiteElo "2139"]
[BlackElo "2404"]
[Annotator "NA"]
[PlyCount "44"]
[EventDate "2018.07.24"]
[EventType "swiss"]
[EventCountry "NED"]
[SourceTitle "playchess.com"]
[Source "ChessBase"]
[SourceQuality "1"]
[TimeControl "40/5400+30:1800+30"]

1. d4 {[%emt 0:00:00]} f5 {[%emt 0:00:08]} 2. g3 {[%emt 0:00:00]} d6 {[%emt 0:00:09]} 3. Nf3 {[%emt 0:00:01]} Nf6 {[%emt 0:00:07]} 4. Bg2 {[%emt 0:00:05]} g6 {[%emt 0:00:06]} 5. O-O {[%emt 0:00:08]} Bg7 {[%emt 0:00:05]} 6. b4 {[%emt 0:00:52]} O-O {[%emt 0:01:07]} 7. Bb2 {[%emt 0:00:05]} Qe8 {[%emt 0:02:22]} 8. c4 {[%emt 0:01:57]} h6 {[%emt 0:00:25]} 9. Nbd2 {[%emt 0:02:39]} g5 {[%emt 0:00:26]} 10. Qc2 {[%emt 0:03:20]} f4 {[%emt 0:04:57]} 11. Rfe1 {[%emt 0:06:39]} Qh5 {[%emt 0:02:07]} 12. e4 {[%emt 0:03:42]} Bh3 {[%emt 0:03:22]} 13. Bh1 {[%emt 0:10:24]} Ng4 {[%emt 0:02:04]} 14. e5 {[%emt 0:10:18]} dxe5 {[%emt 0:02:18]} 15. dxe5 {[%emt 0:00:18]} Nxf2 {[%emt 0:03:17]} 16. Kxf2 {[%emt 0:01:21]} fxg3+ {[%emt 0:02:55]} 17. Kxg3 {[%emt 0:06:42]} Nc6 {[%emt 0:05:20]} 18. c5 {[%emt 0:09:13]} Be6 {[%emt 0:05:24]} 19. Bg2 {[%emt 0:06:27]} Nxb4 {[%emt 0:02:01]} 20. Qe4 {[%emt 0:03:00]} Rf4 {[%emt 0:00:22]} 21. Qxb7 {[%emt 0:01:57]} Raf8 {[%emt 0:04:12]} 22. Re4 {[%emt 0:02:28]} Qh4+ {[%emt 0:00:10]} 0-1

[Event "Condigne Dutch Open 2018"]
[Site "Dieren"]
[Date "2018.07.24"]
[Round "1"]
[White "Godbole, Atharva"]
[Black "Bosboom, Manuel"]
[Result "1/2-1/2"]
[ECO "B28"]
[WhiteElo "2128"]
[BlackElo "2403"]
[Annotator "NA"]
[PlyCount "82"]
[EventDate "2018.07.24"]
[EventType "swiss"]
[EventCountry "NED"]
[SourceTitle "playchess.com"]
[Source "ChessBase"]
[SourceQuality "1"]
[TimeControl "40/5400+30:1800+30"]

1. e4 {[%emt 0:00:00]} c5 {[%emt 0:02:51]} 2. Nf3 {[%emt 0:00:06]} a6 {[%emt 0:01:43]} 3. c3 {[%emt 0:03:59]} d5 {[%emt 0:00:32]} 4. exd5 {[%emt 0:00:49]} Nf6 {[%emt 0:00:07]} 5. d4 {[%emt 0:00:47]} cxd4 {[%emt 0:03:56]} 6. Qxd4 {[%emt 0:14:49]} Qxd5 {[%emt 0:03:56]} 7. Bc4 {[%emt 0:04:08]} Qxd4 {[%emt 0:08:23]} 8. Nxd4 {[%emt 0:00:21]} Bd7 {[%emt 0:02:59]} 9. O-O {[%emt 0:11:00]} Nc6 {[%emt 0:03:30]} 10. Nxc6 {[%emt 0:01:02]} Bxc6 {[%emt 0:00:04]} 11. Be3 {[%emt 0:00:58]} Ng4 {[%emt 0:09:48]} 12. Bd4 {[%emt 0:03:55]} h5 {[%emt 0:09:04]} 13. Nd2 {[%emt 0:03:34]} e5 {[%emt 0:14:02]} 14. Bb6 {[%emt 0:11:52]} Bd6 {[%emt 0:18:58]} 15. f3 {[%emt 0:10:04]} Nf6 {[%emt 0:02:04]} 16. Rad1 {[%emt 0:00:42]} Ke7 {[%emt 0:01:57]} 17. Rfe1 {[%emt 0:04:09]} Nd7 {[%emt 0:02:39]} 18. Bf2 {[%emt 0:01:30]} Rac8 {[%emt 0:02:07]} 19. Bb3 {[%emt 0:03:35]} f6 {[%emt 0:00:25]} 20. Nc4 {[%emt 0:02:41]} Bc5 {[%emt 0:00:50]} 21. Bxc5+ {[%emt 0:03:50]} Nxc5 {[%emt 0:00:01]} 22. Nd6 {[%emt 0:00:08]} Rc7 {[%emt 0:01:08]} 23. Nf5+ {[%emt 0:00:13]} Ke8 {[%emt 0:00:03]} 24. Bc2 {[%emt 0:04:01]} h4 {[%emt 0:03:50]} 25. f4 {[%emt 0:04:25]} Nd7 {[%emt 0:01:17]} 26. Nxg7+ {[%emt 0:00:38]} Kf7 {[%emt 0:00:24]} 27. Nf5 {[%emt 0:00:05]} h3 {[%emt 0:01:14]} 28. g3 {[%emt 0:00:46]} Rh5 {[%emt 0:03:15]} 29. Nh4 {[%emt 0:04:00]} Rxh4 {[%emt 0:00:20]} 30. gxh4 {[%emt 0:00:05]} exf4 {[%emt 0:00:13]} 31. Be4 {[%emt 0:00:58]} Ne5 {[%emt 0:00:19]} 32. Bxc6 {[%emt 0:01:09]} bxc6 {[%emt 0:04:31]} 33. Re4 {[%emt 0:00:18]} f3 {[%emt 0:00:00]} 34. Rf1 {[%emt 0:03:45]} Rd7 {[%emt 0:00:00]} 35. Rxe5 {[%emt 0:00:29]} fxe5 {[%emt 0:00:00]} 36. Rxf3+ {[%emt 0:00:07]} Kg6 {[%emt 0:00:00]} 37. Rxh3 {[%emt 0:00:37]} Rd2 {[%emt 0:00:45]} 38. h5+ {[%emt 0:02:00]} Kh6 {[%emt 0:00:14]} 39. Re3 {[%emt 0:00:22]} Rxb2 {[%emt 0:00:07]} 40. Rxe5 {[%emt 0:00:07]} Rxa2 {[%emt 0:30:09]} 41. Rc5 {[%emt 0:30:23]} a5 {[%emt 0:00:14]} 1/2-1/2

[Event "Condigne Dutch Open 2018"]
[Site "Dieren"]
[Date "2018.07.25"]
[Round "2"]
[White "L'Ami, Erwin"]
[Black "Viani Antonio Dcunha"]
[Result "1-0"]
[ECO "C95"]
[WhiteElo "2636"]
[BlackElo "2404"]
[Annotator "RC"]
[PlyCount "85"]
[EventDate "2018.07.24"]
[EventType "swiss"]
[EventCountry "NED"]
[SourceTitle "playchess.com"]
[Source "ChessBase"]
[SourceQuality "1"]
[TimeControl "40/5400+30:1800+30"]

1. e4 {[%emt 0:00:00]} e5 {[%emt 0:00:00]} 2. Nf3 {[%emt 0:00:00]} Nc6 {[%emt 0:00:00]} 3. Bb5 {[%emt 0:00:00]} a6 {[%emt 0:00:05]} 4. Ba4 {[%emt 0:00:08]} Nf6 {[%emt 0:00:17]} 5. O-O {[%emt 0:00:21]} b5 {[%emt 0:00:46]} 6. Bb3 {[%emt 0:00:07]} Be7 {[%emt 0:00:39]} 7. Re1 {[%emt 0:02:14]} O-O {[%emt 0:00:51]} 8. h3 {[%emt 0:02:27]} d6 {[%emt 0:03:02]} 9. c3 {[%emt 0:00:14]} Nb8 {[%emt 0:07:13]} 10. d4 {[%emt 0:01:22]} Nbd7 {[%emt 0:00:10]} 11. Nbd2 {[%emt 0:00:22]} Bb7 {[%emt 0:00:39]} 12. Bc2 {[%emt 0:00:14]} Re8 {[%emt 0:00:56]} 13. Nf1 {[%emt 0:00:10]} Bf8 {[%emt 0:01:00]} 14. Ng3 {[%emt 0:00:11]} g6 {[%emt 0:00:41]} 15. a4 {[%emt 0:00:25]} c6 {[%emt 0:03:26]} 16. Bg5 {[%emt 0:05:38]} h6 {[%emt 0:06:14]} 17. Be3 {[%emt 0:00:37]} Qc7 {[%emt 0:03:15]} 18. Qc1 {[%emt 0:09:15]} Kh7 {[%emt 0:00:43]} 19. b4 {[%emt 0:05:01]} Nb6 {[%emt 0:08:02]} 20. Bb3 {[%emt 0:07:21]} Nxa4 {[%emt 0:01:59]} 21. c4 {[%emt 0:01:56]} Bg7 {[%emt 0:10:02]} 22. c5 {[%emt 0:03:09]} dxc5 {[%emt 0:07:33]} 23. bxc5 {[%emt 0:05:28]} exd4 {[%emt 0:14:09]} 24. Bxd4 {[%emt 0:55:20]} Rad8 {[%emt 0:02:59]} 25. e5 {[%emt 0:00:00]} Nd5 {[%emt 0:12:22]} 26. Ne4 {[%emt 0:00:00]} Bc8 {[%emt 0:00:47]} 27. Nd6 {[%emt 0:00:00]} Re7 {[%emt 0:02:07]} 28. Re4 {[%emt 0:00:00]} Be6 {[%emt 0:03:37]} 29. Rh4 {[%emt 0:00:00]} Qd7 {[%emt 0:00:43]} 30. Ng5+ {[%emt 0:00:00]} Kg8 {[%emt 0:00:05]} 31. Nge4 {[%emt 0:00:00]} g5 {[%emt 0:03:50]} 32. Bxd5 {[%emt 0:00:00]} Bxd5 {[%emt 0:01:02]} 33. Nf6+ {[%emt 0:00:00]} Bxf6 {[%emt 0:00:05]} 34. exf6 {[%emt 0:00:00]} Re1+ {[%emt 0:01:35]} 35. Qxe1 {[%emt 0:00:00]} gxh4 {[%emt 0:00:03]} 36. f3 {[%emt 0:00:00]} Kh7 {[%emt 0:02:43]} 37. Qxh4 {[%emt 0:00:00]} Rg8 {[%emt 0:00:09]} 38. Re1 {[%emt 0:00:00]} Qd8 {[%emt 0:00:31]} 39. Re7 {[%emt 0:00:00]} Qf8 {[%emt 0:02:09]} 40. Re8 {[%emt 0:00:00]} Qxe8 {[%emt 0:00:33]} 41. Nxe8 {[%emt 0:16:27]} Rg6 {[%emt 0:03:10]} 42. Qf2 {[%emt 0:00:00]} b4 {[%emt 0:00:25]} 43. Nc7 {[%emt 0:00:00]} 1-0

[Event "Condigne Dutch Open 2018"]
[Site "Dieren"]
[Date "2018.07.25"]
[Round "2"]
[White "Reinderman, Dimitri"]
[Black "Schoppen, Casper"]
[Result "0-1"]
[ECO "A09"]
[WhiteElo "2575"]
[BlackElo "2395"]
[Annotator "ChessBase"]
[PlyCount "92"]
[EventDate "2018.07.24"]
[EventType "swiss"]
[EventCountry "NED"]
[SourceTitle "playchess.com"]
[Source "ChessBase"]
[SourceQuality "1"]
[TimeControl "40/5400+30:1800+30"]

1. Nf3 {[%emt 0:00:00]} d5 {[%emt 0:00:26]} 2. c4 {[%emt 0:00:00]} d4 {[%emt 0:00:22]} 3. b4 {[%emt 0:00:04]} g5 {[%emt 0:02:34]} 4. Bb2 {[%emt 0:00:49]} Bg7 {[%emt 0:02:37]} 5. Nxg5 {[%emt 0:00:18]} e5 {[%emt 0:00:35]} 6. Ne4 {[%emt 0:01:02]} f5 {[%emt 0:01:12]} 7. Nc5 {[%emt 0:00:57]} b6 {[%emt 0:14:48]} 8. Nd3 {[%emt 0:03:14]} Ne7 {[%emt 0:16:40]} 9. e3 {[%emt 0:07:56]} O-O {[%emt 0:07:41]} 10. c5 {[%emt 0:00:50]} Ng6 {[%emt 0:08:31]} 11. h4 {[%emt 0:05:57]} Be6 {[%emt 0:05:05]} 12. h5 {[%emt 0:02:27]} Ne7 {[%emt 0:00:07]} 13. exd4 {[%emt 0:24:31]} exd4 {[%emt 0:01:54]} 14. Be2 {[%emt 0:05:02]} Nbc6 {[%emt 0:03:58]} 15. O-O {[%emt 0:01:48]} Nd5 {[%emt 0:03:01]} 16. a3 {[%emt 0:12:40]} Qh4 {[%emt 0:07:42]} 17. Bf3 {[%emt 0:30:55]} Rae8 {[%emt 0:02:28]} 18. cxb6 {[%emt 0:00:00]} axb6 {[%emt 0:02:58]} 19. Re1 {[%emt 0:00:00]} Bf7 {[%emt 0:01:42]} 20. g3 {[%emt 0:00:00]} Qg5 {[%emt 0:00:53]} 21. b5 {[%emt 0:00:00]} Na5 {[%emt 0:04:11]} 22. a4 {[%emt 0:00:00]} Rxe1+ {[%emt 0:06:44]} 23. Qxe1 {[%emt 0:00:00]} f4 {[%emt 0:00:58]} 24. Na3 {[%emt 0:00:00]} Re8 {[%emt 0:00:43]} 25. Qf1 {[%emt 0:00:00]} fxg3 {[%emt 0:00:28]} 26. Qg2 {[%emt 0:00:50]} gxf2+ {[%emt 0:00:52]} 27. Nxf2 {[%emt 0:00:06]} Qxg2+ {[%emt 0:01:16]} 28. Kxg2 {[%emt 0:00:46]} Nb3 {[%emt 0:00:52]} 29. Rd1 {[%emt 0:01:47]} Nf4+ {[%emt 0:00:07]} 30. Kg3 {[%emt 0:00:37]} Nxh5+ {[%emt 0:00:29]} 31. Kh4 {[%emt 0:00:25]} Bf6+ {[%emt 0:00:38]} 32. Kg4 {[%emt 0:01:10]} Ng7 {[%emt 0:01:25]} 33. Kh3 {[%emt 0:01:04]} Be6+ {[%emt 0:00:39]} 34. Kg2 {[%emt 0:00:21]} Nc5 {[%emt 0:00:52]} 35. Nc2 {[%emt 0:00:38]} Nf5 {[%emt 0:00:52]} 36. Ne4 {[%emt 0:00:47]} Nxe4 {[%emt 0:00:23]} 37. Bxe4 {[%emt 0:00:01]} Kf7 {[%emt 0:00:22]} 38. Rc1 {[%emt 0:00:32]} Rg8+ {[%emt 0:00:21]} 39. Kf2 {[%emt 0:00:19]} Bh4+ {[%emt 0:00:23]} 40. Kf3 {[%emt 0:00:13]} Rg3+ {[%emt 0:00:54]} 41. Ke2 {[%emt 0:31:06]} d3+ {[%emt 0:20:04]} 42. Bxd3 {[%emt 0:00:00]} Rg2+ {[%emt 0:00:09]} 43. Kf3 {[%emt 0:00:00]} Bd5+ {[%emt 0:05:33]} 44. Kf4 {[%emt 0:00:00]} Rf2+ {[%emt 0:00:50]} 45. Ke5 {[%emt 0:00:00]} Ne7 {[%emt 0:00:27]} 46. Ne3 {[%emt 0:00:00]} Bf6# {[%emt 0:00:38]} 0-1